[Event "Titled Tuesday Blitz April 18 Late 2023"]
[White "Yoo, Christopher Woojin"]
[Black "Djordjevic, Vuk"]
[WhiteFideId "30909694"]
[BlackFideId "902098"]
[WhiteElo "2519"]
[BlackElo "2452"]
[Result "1/2-1/2"]
[Round "09"]
[TimeControl "180+2"]
[Date "2023.04.18"]
[WhiteClock "0:00:09"]
[BlackClock "0:00:10"]

1. e4 {[%clk 0:02:59]}  e6 {[%clk 0:03:00]} 2. d3 {[%clk 0:02:57]}  d5 {[%clk 0:03:00]} 3. Nd2 {[%clk 0:02:58]}  Nf6 {[%clk 0:03:00]} 4. Ngf3 {[%clk 0:02:57]}  c5 {[%clk 0:03:01]} 5. g3 {[%clk 0:02:57]}  Nc6 {[%clk 0:03:01]} 6. Bg2 {[%clk 0:02:58]}  Be7 {[%clk 0:03:01]} 7. O-O {[%clk 0:02:59]}  O-O {[%clk 0:03:01]} 8. Re1 {[%clk 0:02:59]}  b5 {[%clk 0:03:02]} 9. e5 {[%clk 0:02:59]}  Nd7 {[%clk 0:03:02]} 10. Nf1 {[%clk 0:02:59]}  a5 {[%clk 0:03:02]} 11. h4 {[%clk 0:02:59]}  b4 {[%clk 0:03:01]} 12. h5 {[%clk 0:02:57]}  h6 {[%clk 0:02:59]} 13. N1h2 {[%clk 0:02:56]}  Ba6 {[%clk 0:02:58]} 14. Ng4 {[%clk 0:02:55]}  Nd4 {[%clk 0:02:50]} 15. Bf4 {[%clk 0:02:35]}  Nxf3+ {[%clk 0:02:45]} 16. Bxf3 {[%clk 0:02:34]}  Bg5 {[%clk 0:02:43]} 17. Qd2 {[%clk 0:02:30]}  Bxf4 {[%clk 0:02:43]} 18. Qxf4 {[%clk 0:02:30]}  Kh7 {[%clk 0:01:48]} 19. Bg2 {[%clk 0:02:18]}  a4 {[%clk 0:01:47]} 20. b3 {[%clk 0:02:17]}  Nb8 {[%clk 0:01:33]} 21. d4 {[%clk 0:01:50]}  cxd4 {[%clk 0:00:51]} 22. Qxd4 {[%clk 0:01:51]}  Nc6 {[%clk 0:00:47]} 23. Qe3 {[%clk 0:01:51]}  Qg5 {[%clk 0:00:44]} 24. Qxg5 {[%clk 0:01:51]}  hxg5 {[%clk 0:00:44]} 25. Rad1 {[%clk 0:01:51]}  Rfc8 {[%clk 0:00:39]} 26. f4 {[%clk 0:01:46]}  Ne7 {[%clk 0:00:37]} 27. Rd2 {[%clk 0:01:41]}  gxf4 {[%clk 0:00:36]} 28. gxf4 {[%clk 0:01:41]}  Rc3 {[%clk 0:00:35]} 29. Ne3 {[%clk 0:01:01]}  Bb7 {[%clk 0:00:20]} 30. Bf1 {[%clk 0:00:56]}  Ba6 {[%clk 0:00:20]} 31. Bh3 {[%clk 0:00:34]}  g6 {[%clk 0:00:18]} 32. Bg4 {[%clk 0:00:27]}  Rg8 {[%clk 0:00:16]} 33. Kf2 {[%clk 0:00:26]}  gxh5 {[%clk 0:00:13]} 34. Bxh5 {[%clk 0:00:27]}  Ng6 {[%clk 0:00:13]} 35. Rh1 {[%clk 0:00:15]}  Kg7 {[%clk 0:00:11]} 36. Bxg6 {[%clk 0:00:15]}  fxg6 {[%clk 0:00:10]} 37. Rd4 {[%clk 0:00:16]}  Rb8 {[%clk 0:00:04]} 38. Rg1 {[%clk 0:00:16]}  Kf7 {[%clk 0:00:04]} 39. Rg3 {[%clk 0:00:11]}  axb3 {[%clk 0:00:03]} 40. axb3 {[%clk 0:00:12]}  Bc8 {[%clk 0:00:03]} 41. Rh3 {[%clk 0:00:11]}  Kg7 {[%clk 0:00:03]} 42. Rh1 {[%clk 0:00:11]}  Bd7 {[%clk 0:00:03]} 43. Ra1 {[%clk 0:00:12]}  Rb7 {[%clk 0:00:03]} 44. Ra6 {[%clk 0:00:09]}  Kf7 {[%clk 0:00:03]} 45. Ra8 {[%clk 0:00:09]}  Kg7 {[%clk 0:00:03]} 46. Rd2 {[%clk 0:00:08]}  Rc5 {[%clk 0:00:03]} 47. Ng4 {[%clk 0:00:04]}  Rc8 {[%clk 0:00:02]} 48. Ra6 {[%clk 0:00:03]}  Kf7 {[%clk 0:00:01]} 49. Ne3 {[%clk 0:00:03]}  Rc6 {[%clk 0:00:02]} 50. Ra5 {[%clk 0:00:04]}  Rcb6 {[%clk 0:00:02]} 51. Rd4 {[%clk 0:00:04]}  Rb5 {[%clk 0:00:02]} 52. Ra6 {[%clk 0:00:04]}  Rc5 {[%clk 0:00:03]} 53. Ke1 {[%clk 0:00:03]}  Rc6 {[%clk 0:00:03]} 54. Ra5 {[%clk 0:00:03]}  Rcc7 {[%clk 0:00:04]} 55. Kd2 {[%clk 0:00:04]}  Rc8 {[%clk 0:00:04]} 56. Ng4 {[%clk 0:00:04]}  Rh8 {[%clk 0:00:04]} 57. Rc5 {[%clk 0:00:04]}  Ke7 {[%clk 0:00:05]} 58. Nf6 {[%clk 0:00:04]}  Rh2+ {[%clk 0:00:05]} 59. Ke3 {[%clk 0:00:05]}  Rh3+ {[%clk 0:00:05]} 60. Kf2 {[%clk 0:00:05]}  Rh2+ {[%clk 0:00:05]} 61. Kg3 {[%clk 0:00:05]}  Re2 {[%clk 0:00:06]} 62. Rd1 {[%clk 0:00:06]}  Be8 {[%clk 0:00:04]} 63. Rh1 {[%clk 0:00:05]}  Bf7 {[%clk 0:00:04]} 64. Rh7 {[%clk 0:00:05]}  Re3+ {[%clk 0:00:04]} 65. Kf2 {[%clk 0:00:04]}  Rc3 {[%clk 0:00:03]} 66. Rxc3 {[%clk 0:00:05]}  bxc3 {[%clk 0:00:04]} 67. Ke3 {[%clk 0:00:05]}  Rb4 {[%clk 0:00:04]} 68. Ng4 {[%clk 0:00:05]}  Kf8 {[%clk 0:00:04]} 69. Nh6 {[%clk 0:00:04]}  Be8 {[%clk 0:00:04]} 70. Rh8+ {[%clk 0:00:03]}  Ke7 {[%clk 0:00:04]} 71. Ng8+ {[%clk 0:00:03]}  Kf7 {[%clk 0:00:04]} 72. Nf6 {[%clk 0:00:04]}  Bc6 {[%clk 0:00:04]} 73. Rc8 {[%clk 0:00:04]}  Bb5 {[%clk 0:00:04]} 74. Rc7+ {[%clk 0:00:04]}  Kf8 {[%clk 0:00:04]} 75. Nd7+ {[%clk 0:00:03]}  Ke8 {[%clk 0:00:04]} 76. Nc5 {[%clk 0:00:02]}  d4+ {[%clk 0:00:02]} 77. Kf3 {[%clk 0:00:02]}  d3 {[%clk 0:00:02]} 78. Nxd3 {[%clk 0:00:02]}  Bxd3 {[%clk 0:00:01]} 79. cxd3 {[%clk 0:00:03]}  Rxb3 {[%clk 0:00:01]} 80. Ke4 {[%clk 0:00:04]}  Kf8 {[%clk 0:00:02]} 81. d4 {[%clk 0:00:03]}  Ra3 {[%clk 0:00:02]} 82. Kd3 {[%clk 0:00:02]}  c2+ {[%clk 0:00:02]} 83. Kxc2 {[%clk 0:00:02]}  Rf3 {[%clk 0:00:03]} 84. Rc6 {[%clk 0:00:02]}  Kf7 {[%clk 0:00:03]} 85. d5 {[%clk 0:00:02]}  exd5 {[%clk 0:00:03]} 86. Rf6+ {[%clk 0:00:03]}  Kg7 {[%clk 0:00:04]} 87. Kd2 {[%clk 0:00:04]}  Rg3 {[%clk 0:00:04]} 88. Ke2 {[%clk 0:00:03]}  d4 {[%clk 0:00:04]} 89. Rd6 {[%clk 0:00:04]}  Re3+ {[%clk 0:00:05]} 90. Kf2 {[%clk 0:00:04]}  Rd3 {[%clk 0:00:05]} 91. Rd7+ {[%clk 0:00:04]}  Kh6 {[%clk 0:00:05]} 92. Ke2 {[%clk 0:00:03]}  Re3+ {[%clk 0:00:05]} 93. Kf2 {[%clk 0:00:03]}  Rd3 {[%clk 0:00:06]} 94. Kg2 {[%clk 0:00:04]}  Kh5 {[%clk 0:00:06]} 95. e6 {[%clk 0:00:04]}  Re3 {[%clk 0:00:06]} 96. Rd5+ {[%clk 0:00:02]}  Kh6 {[%clk 0:00:06]} 97. Rd6 {[%clk 0:00:02]}  d3 {[%clk 0:00:05]} 98. Kf2 {[%clk 0:00:02]}  Re4 {[%clk 0:00:06]} 99. Kf3 {[%clk 0:00:02]}  Re1 {[%clk 0:00:06]} 100. Kg4 {[%clk 0:00:02]}  d2 {[%clk 0:00:06]} 101. Rxd2 {[%clk 0:00:01]}  Rxe6 {[%clk 0:00:07]} 102. Rd7 {[%clk 0:00:02]}  Rf6 {[%clk 0:00:07]} 103. Re7 {[%clk 0:00:02]}  Rd6 {[%clk 0:00:07]} 104. Re8 {[%clk 0:00:02]}  Rf6 {[%clk 0:00:07]} 105. Rh8+ {[%clk 0:00:03]}  Kg7 {[%clk 0:00:08]} 106. Ra8 {[%clk 0:00:04]}  Rf5 {[%clk 0:00:08]} 107. Ra7+ {[%clk 0:00:04]}  Rf7 {[%clk 0:00:09]} 108. Ra1 {[%clk 0:00:05]}  Rf6 {[%clk 0:00:09]} 109. Kg5 {[%clk 0:00:05]}  Rf5+ {[%clk 0:00:09]} 110. Kg4 {[%clk 0:00:06]}  Rf7 {[%clk 0:00:10]} 111. Ra6 {[%clk 0:00:06]}  Rf6 {[%clk 0:00:11]} 112. Ra5 {[%clk 0:00:07]}  Rf7 {[%clk 0:00:11]} 113. Kg5 {[%clk 0:00:07]}  Rd7 {[%clk 0:00:10]} 114. Re5 {[%clk 0:00:07]}  Rf7 {[%clk 0:00:11]} 115. Kg4 {[%clk 0:00:07]}  Rf6 {[%clk 0:00:11]} 116. Re7+ {[%clk 0:00:08]}  Rf7 {[%clk 0:00:11]} 117. Re6 {[%clk 0:00:08]}  Rf6 {[%clk 0:00:11]} 118. Re3 {[%clk 0:00:08]}  Rf7 {[%clk 0:00:12]} 119. Rc3 {[%clk 0:00:08]}  Rf5 {[%clk 0:00:12]} 120. Rc6 {[%clk 0:00:08]}  Rf6 {[%clk 0:00:12]} 121. Rc5 {[%clk 0:00:07]}  Rf7 {[%clk 0:00:13]} 122. Kg5 {[%clk 0:00:08]}  Rd7 {[%clk 0:00:14]} 123. Ra5 {[%clk 0:00:08]}  Rf7 {[%clk 0:00:13]} 124. Rb5 {[%clk 0:00:07]}  Rd7 {[%clk 0:00:13]} 125. Rc5 {[%clk 0:00:07]}  Rf7 {[%clk 0:00:13]} 126. Rd5 {[%clk 0:00:05]}  Rb7 {[%clk 0:00:14]} 127. Re5 {[%clk 0:00:05]}  Rf7 {[%clk 0:00:14]} 128. Re6 {[%clk 0:00:05]}  Rf5+ {[%clk 0:00:14]} 129. Kg4 {[%clk 0:00:06]}  Rd5 {[%clk 0:00:14]} 130. Ra6 {[%clk 0:00:06]}  Rd1 {[%clk 0:00:14]} 131. Ra7+ {[%clk 0:00:06]}  Kh6 {[%clk 0:00:14]} 132. Ra8 {[%clk 0:00:06]}  Rg1+ {[%clk 0:00:14]} 133. Kf3 {[%clk 0:00:06]}  Rf1+ {[%clk 0:00:15]} 134. Ke4 {[%clk 0:00:07]}  Re1+ {[%clk 0:00:15]} 135. Kf3 {[%clk 0:00:07]}  Rf1+ {[%clk 0:00:15]} 136. Kg3 {[%clk 0:00:08]}  Rg1+ {[%clk 0:00:15]} 137. Kf2 {[%clk 0:00:08]}  Rc1 {[%clk 0:00:16]} 138. Ra3 {[%clk 0:00:08]}  Kh5 {[%clk 0:00:14]} 139. Kf3 {[%clk 0:00:08]}  Kh6 {[%clk 0:00:14]} 140. Ra7 {[%clk 0:00:07]}  Rf1+ {[%clk 0:00:14]} 141. Kg3 {[%clk 0:00:07]}  Rg1+ {[%clk 0:00:14]} 142. Kf2 {[%clk 0:00:08]}  Rc1 {[%clk 0:00:15]} 143. Ra8 {[%clk 0:00:08]}  Kh5 {[%clk 0:00:14]} 144. Ke3 {[%clk 0:00:08]}  Kg4 {[%clk 0:00:11]} 145. Ra5 {[%clk 0:00:08]}  Re1+ {[%clk 0:00:10]} 146. Kf2 {[%clk 0:00:08]}  Re6 {[%clk 0:00:10]} 147. Ra4 {[%clk 0:00:07]}  Rf6 {[%clk 0:00:10]} 148. Ke3 {[%clk 0:00:08]}  Re6+ {[%clk 0:00:10]} 149. Re4 {[%clk 0:00:08]}  Rxe4+ {[%clk 0:00:08]} 150. Kxe4 {[%clk 0:00:09]}  Kg3 {[%clk 0:00:09]} 151. f5 {[%clk 0:00:08]}  gxf5+ {[%clk 0:00:10]} 152. Kxf5 {[%clk 0:00:09]} 1/2-1/2


[Site "https://www.chess.com"]

[Event "Titled Tuesday Blitz April 18 Late 2023"]
[White "Firouzja, Alireza"]
[Black "Terry, Renato"]
[WhiteFideId "12573981"]
[BlackFideId "3803457"]
[WhiteElo "2904"]
[BlackElo "2575"]
[Result "1-0"]
[Round "09"]
[TimeControl "180+2"]
[Date "2023.04.18"]
[WhiteClock "0:00:06"]
[BlackClock "0:00:04"]

1. d4 {[%clk 0:02:59]}  e6 {[%clk 0:03:00]} 2. c4 {[%clk 0:02:56]}  Bb4+ {[%clk 0:03:00]} 3. Nd2 {[%clk 0:02:55]}  Nf6 {[%clk 0:02:59]} 4. e3 {[%clk 0:02:52]}  b6 {[%clk 0:02:59]} 5. Bd3 {[%clk 0:02:49]}  Bb7 {[%clk 0:02:59]} 6. Nf3 {[%clk 0:02:50]}  O-O {[%clk 0:02:59]} 7. a3 {[%clk 0:02:49]}  Bxd2+ {[%clk 0:02:58]} 8. Bxd2 {[%clk 0:02:50]}  Ne4 {[%clk 0:02:55]} 9. Qc2 {[%clk 0:02:38]}  f5 {[%clk 0:02:55]} 10. c5 {[%clk 0:02:39]}  d6 {[%clk 0:02:52]} 11. cxd6 {[%clk 0:02:37]}  cxd6 {[%clk 0:02:51]} 12. Rc1 {[%clk 0:02:34]}  Nd7 {[%clk 0:02:39]} 13. Qc7 {[%clk 0:02:26]}  Rb8 {[%clk 0:02:38]} 14. Qxd8 {[%clk 0:01:35]}  Rfxd8 {[%clk 0:02:36]} 15. Ke2 {[%clk 0:01:36]}  Rbc8 {[%clk 0:02:33]} 16. Rhd1 {[%clk 0:01:04]}  Ndf6 {[%clk 0:02:31]} 17. Be1 {[%clk 0:01:02]}  Kf8 {[%clk 0:02:12]} 18. Ng1 {[%clk 0:00:59]}  Ng5 {[%clk 0:02:10]} 19. f3 {[%clk 0:00:59]}  Nf7 {[%clk 0:02:09]} 20. Kf2 {[%clk 0:00:59]}  g6 {[%clk 0:01:59]} 21. Ne2 {[%clk 0:00:59]}  Ke7 {[%clk 0:01:55]} 22. Nc3 {[%clk 0:00:56]}  Nd5 {[%clk 0:01:45]} 23. Nxd5+ {[%clk 0:00:53]}  Bxd5 {[%clk 0:01:46]} 24. Ba6 {[%clk 0:00:54]}  Rxc1 {[%clk 0:01:45]} 25. Rxc1 {[%clk 0:00:55]}  Rd7 {[%clk 0:01:37]} 26. Bc8 {[%clk 0:00:52]}  Rd8 {[%clk 0:01:35]} 27. Rc7+ {[%clk 0:00:52]}  Kf8 {[%clk 0:01:33]} 28. Ba6 {[%clk 0:00:53]}  Ra8 {[%clk 0:01:29]} 29. Bb4 {[%clk 0:00:46]}  g5 {[%clk 0:01:29]} 30. h3 {[%clk 0:00:40]}  h5 {[%clk 0:01:26]} 31. g4 {[%clk 0:00:36]}  hxg4 {[%clk 0:01:26]} 32. hxg4 {[%clk 0:00:36]}  Kg8 {[%clk 0:01:13]} 33. Re7 {[%clk 0:00:22]}  Kf8 {[%clk 0:01:04]} 34. Rd7 {[%clk 0:00:22]}  Ke8 {[%clk 0:00:58]} 35. Rc7 {[%clk 0:00:19]}  Kf8 {[%clk 0:00:56]} 36. gxf5 {[%clk 0:00:12]}  exf5 {[%clk 0:00:57]} 37. Bd3 {[%clk 0:00:12]}  a5 {[%clk 0:00:42]} 38. Bd2 {[%clk 0:00:12]}  Be6 {[%clk 0:00:38]} 39. Rb7 {[%clk 0:00:11]}  Kg7 {[%clk 0:00:32]} 40. Rxb6 {[%clk 0:00:10]}  Rh8 {[%clk 0:00:33]} 41. Kg2 {[%clk 0:00:10]}  g4 {[%clk 0:00:30]} 42. fxg4 {[%clk 0:00:11]}  fxg4 {[%clk 0:00:25]} 43. e4 {[%clk 0:00:11]}  Rh3 {[%clk 0:00:24]} 44. Be2 {[%clk 0:00:11]}  g3 {[%clk 0:00:23]} 45. Bc3 {[%clk 0:00:03]}  Rh2+ {[%clk 0:00:06]} 46. Kxg3 {[%clk 0:00:04]}  Rxe2 {[%clk 0:00:07]} 47. Kf3 {[%clk 0:00:05]}  Rc2 {[%clk 0:00:04]} 48. d5+ {[%clk 0:00:05]}  Rxc3+ {[%clk 0:00:04]} 49. bxc3 {[%clk 0:00:05]}  Bd7 {[%clk 0:00:04]} 50. Ke3 {[%clk 0:00:05]}  Ne5 {[%clk 0:00:03]} 51. Kd4 {[%clk 0:00:05]}  Nf3+ {[%clk 0:00:04]} 52. Ke3 {[%clk 0:00:05]}  Ne5 {[%clk 0:00:04]} 53. Ra6 {[%clk 0:00:05]}  a4 {[%clk 0:00:04]} 54. Kd4 {[%clk 0:00:06]}  Nf3+ {[%clk 0:00:05]} 55. Kc4 {[%clk 0:00:05]}  Ne5+ {[%clk 0:00:06]} 56. Kb4 {[%clk 0:00:06]}  Nd3+ {[%clk 0:00:04]} 57. Ka5 {[%clk 0:00:06]}  Ne5 {[%clk 0:00:05]} 58. Kb6 {[%clk 0:00:03]}  Bg4 {[%clk 0:00:04]} 59. Kc7 {[%clk 0:00:03]}  Nc4 {[%clk 0:00:04]} 60. Rxa4 {[%clk 0:00:04]}  Nd2 {[%clk 0:00:05]} 61. Rd4 {[%clk 0:00:04]}  Nb3 {[%clk 0:00:04]} 62. Rb4 {[%clk 0:00:05]}  Nc5 {[%clk 0:00:05]} 63. Kxd6 {[%clk 0:00:05]}  Nd3 {[%clk 0:00:05]} 64. Rd4 {[%clk 0:00:05]}  Nc1 {[%clk 0:00:03]} 65. e5 {[%clk 0:00:05]}  Bf5 {[%clk 0:00:04]} 66. e6 {[%clk 0:00:06]}  Nb3 {[%clk 0:00:04]} 67. Rf4 {[%clk 0:00:06]}  Kg6 {[%clk 0:00:04]} 68. Rxf5 {[%clk 0:00:06]}  Kxf5 {[%clk 0:00:04]} 69. e7 {[%clk 0:00:06]} 1-0


[Site "https://www.chess.com"]

[Event "Titled Tuesday Blitz April 18 Late 2023"]
[White "Hakobyan, Aram"]
[Black "Rasulov, Vugar"]
[WhiteFideId "13306677"]
[BlackFideId "13402390"]
[WhiteElo "2584"]
[BlackElo "2509"]
[Result "1/2-1/2"]
[Round "09"]
[TimeControl "180+2"]
[Date "2023.04.18"]
[WhiteClock "0:00:05"]
[BlackClock "0:00:04"]

1. d4 {[%clk 0:03:00]}  Nf6 {[%clk 0:02:57]} 2. c4 {[%clk 0:03:01]}  e6 {[%clk 0:02:57]} 3. Nc3 {[%clk 0:03:02]}  Bb4 {[%clk 0:02:56]} 4. e3 {[%clk 0:03:02]}  O-O {[%clk 0:02:56]} 5. a3 {[%clk 0:03:03]}  Bxc3+ {[%clk 0:02:55]} 6. bxc3 {[%clk 0:03:04]}  d5 {[%clk 0:02:50]} 7. cxd5 {[%clk 0:03:03]}  Nxd5 {[%clk 0:02:50]} 8. c4 {[%clk 0:03:01]}  Ne7 {[%clk 0:02:49]} 9. Nf3 {[%clk 0:03:01]}  c5 {[%clk 0:02:49]} 10. Bd3 {[%clk 0:03:01]}  h6 {[%clk 0:02:34]} 11. O-O {[%clk 0:03:01]}  Nbc6 {[%clk 0:02:33]} 12. Bb2 {[%clk 0:02:56]}  b6 {[%clk 0:02:33]} 13. Qe2 {[%clk 0:02:52]}  Bb7 {[%clk 0:02:29]} 14. Rfd1 {[%clk 0:02:51]}  Qc7 {[%clk 0:02:29]} 15. dxc5 {[%clk 0:02:39]}  bxc5 {[%clk 0:02:26]} 16. Rab1 {[%clk 0:02:37]}  Rad8 {[%clk 0:02:24]} 17. Bxg7 {[%clk 0:02:20]}  Kxg7 {[%clk 0:02:22]} 18. Qb2+ {[%clk 0:02:20]}  e5 {[%clk 0:02:17]} 19. Qxb7 {[%clk 0:01:36]}  Qxb7 {[%clk 0:02:17]} 20. Rxb7 {[%clk 0:01:36]}  e4 {[%clk 0:02:18]} 21. Ne1 {[%clk 0:01:37]}  exd3 {[%clk 0:02:17]} 22. Nxd3 {[%clk 0:01:30]}  Ng6 {[%clk 0:02:08]} 23. Rbb1 {[%clk 0:01:26]}  Nce5 {[%clk 0:02:06]} 24. Nxc5 {[%clk 0:01:24]}  Nxc4 {[%clk 0:02:05]} 25. Rdc1 {[%clk 0:01:21]}  Nxa3 {[%clk 0:01:54]} 26. Rb7 {[%clk 0:01:18]}  Kg8 {[%clk 0:01:43]} 27. Nd7 {[%clk 0:01:07]}  Rc8 {[%clk 0:01:35]} 28. Ra1 {[%clk 0:01:07]}  Rfd8 {[%clk 0:01:27]} 29. Nf6+ {[%clk 0:01:07]}  Kg7 {[%clk 0:01:27]} 30. Nh5+ {[%clk 0:01:06]}  Kf8 {[%clk 0:01:27]} 31. Rxa7 {[%clk 0:01:05]}  Nc2 {[%clk 0:01:22]} 32. Rb1 {[%clk 0:01:02]}  Rb8 {[%clk 0:01:17]} 33. Rc1 {[%clk 0:00:59]}  Nb4 {[%clk 0:01:17]} 34. Ng3 {[%clk 0:00:56]}  Nd3 {[%clk 0:01:08]} 35. Rf1 {[%clk 0:00:55]}  Rb5 {[%clk 0:00:58]} 36. h3 {[%clk 0:00:56]}  h5 {[%clk 0:00:57]} 37. Rd1 {[%clk 0:00:52]}  Rbd5 {[%clk 0:00:56]} 38. e4 {[%clk 0:00:52]}  R5d7 {[%clk 0:00:55]} 39. Rxd7 {[%clk 0:00:51]}  Rxd7 {[%clk 0:00:56]} 40. Nxh5 {[%clk 0:00:52]}  Nc5 {[%clk 0:00:49]} 41. Rxd7 {[%clk 0:00:51]}  Nxd7 {[%clk 0:00:50]} 42. Ng3 {[%clk 0:00:51]}  Nc5 {[%clk 0:00:45]} 43. f3 {[%clk 0:00:51]}  Nd3 {[%clk 0:00:42]} 44. Nf5 {[%clk 0:00:49]}  Ngf4 {[%clk 0:00:42]} 45. Kf1 {[%clk 0:00:45]}  f6 {[%clk 0:00:36]} 46. h4 {[%clk 0:00:46]}  Kf7 {[%clk 0:00:36]} 47. g3 {[%clk 0:00:45]}  Ne6 {[%clk 0:00:33]} 48. Ke2 {[%clk 0:00:42]}  Ne5 {[%clk 0:00:34]} 49. f4 {[%clk 0:00:34]}  Nc6 {[%clk 0:00:29]} 50. Ke3 {[%clk 0:00:33]}  Nb4 {[%clk 0:00:29]} 51. h5 {[%clk 0:00:31]}  Nc2+ {[%clk 0:00:25]} 52. Kd3 {[%clk 0:00:31]}  Nb4+ {[%clk 0:00:22]} 53. Ke2 {[%clk 0:00:28]}  Nc2 {[%clk 0:00:21]} 54. Kd3 {[%clk 0:00:27]}  Nb4+ {[%clk 0:00:19]} 55. Kc4 {[%clk 0:00:28]}  Nc2 {[%clk 0:00:19]} 56. Kd5 {[%clk 0:00:25]}  Nc7+ {[%clk 0:00:17]} 57. Kd6 {[%clk 0:00:26]}  Nb5+ {[%clk 0:00:17]} 58. Kd7 {[%clk 0:00:25]}  Ncd4 {[%clk 0:00:15]} 59. Nh6+ {[%clk 0:00:16]}  Kg7 {[%clk 0:00:15]} 60. Ng4 {[%clk 0:00:17]}  Ne2 {[%clk 0:00:07]} 61. f5 {[%clk 0:00:15]}  Nxg3 {[%clk 0:00:05]} 62. h6+ {[%clk 0:00:16]}  Kf7 {[%clk 0:00:06]} 63. Nxf6 {[%clk 0:00:06]}  Nd4 {[%clk 0:00:04]} 64. h7 {[%clk 0:00:05]}  Kg7 {[%clk 0:00:04]} 65. e5 {[%clk 0:00:05]}  Ngxf5 {[%clk 0:00:04]} 66. e6 {[%clk 0:00:05]}  Nxe6 {[%clk 0:00:03]} 67. Kxe6 {[%clk 0:00:05]}  Nd4+ {[%clk 0:00:04]} 68. Ke5 {[%clk 0:00:05]}  Nf3+ {[%clk 0:00:04]} 69. Kf5 {[%clk 0:00:05]}  Nh4+ {[%clk 0:00:03]} 70. Kg5 {[%clk 0:00:06]}  Ng6 {[%clk 0:00:04]} 71. Kf5 {[%clk 0:00:05]}  Nf8 {[%clk 0:00:04]} 72. Nh5+ {[%clk 0:00:05]}  Kxh7 {[%clk 0:00:04]} 1/2-1/2


[Site "https://www.chess.com"]

[Event "Titled Tuesday Blitz April 18 Late 2023"]
[White "Paravyan, David"]
[Black "Moussard, Jules"]
[WhiteFideId "4194985"]
[BlackFideId "642908"]
[WhiteElo "2563"]
[BlackElo "2610"]
[Result "1-0"]
[Round "09"]
[TimeControl "180+2"]
[Date "2023.04.18"]
[WhiteClock "0:00:08"]
[BlackClock "0:00:22"]

1. e4 {[%clk 0:03:00]}  c5 {[%clk 0:02:58]} 2. Nf3 {[%clk 0:03:01]}  d6 {[%clk 0:02:59]} 3. d4 {[%clk 0:03:00]}  cxd4 {[%clk 0:03:00]} 4. Nxd4 {[%clk 0:03:01]}  Nf6 {[%clk 0:03:00]} 5. Nc3 {[%clk 0:03:01]}  a6 {[%clk 0:03:01]} 6. Bg5 {[%clk 0:02:58]}  Nbd7 {[%clk 0:03:01]} 7. Qd2 {[%clk 0:02:55]}  e6 {[%clk 0:02:59]} 8. Bc4 {[%clk 0:02:55]}  b5 {[%clk 0:02:29]} 9. Bxe6 {[%clk 0:02:54]}  fxe6 {[%clk 0:02:29]} 10. Nxe6 {[%clk 0:02:55]}  Qb6 {[%clk 0:02:25]} 11. O-O-O {[%clk 0:02:46]}  Ne5 {[%clk 0:02:19]} 12. Nxf8 {[%clk 0:02:29]}  Rxf8 {[%clk 0:02:04]} 13. Bxf6 {[%clk 0:02:29]}  gxf6 {[%clk 0:02:03]} 14. Nd5 {[%clk 0:02:23]}  Qc6 {[%clk 0:01:59]} 15. Qh6 {[%clk 0:02:16]}  Be6 {[%clk 0:01:41]} 16. Nxf6+ {[%clk 0:01:59]}  Ke7 {[%clk 0:01:41]} 17. Nxh7 {[%clk 0:01:59]}  Qxe4 {[%clk 0:01:19]} 18. Qg5+ {[%clk 0:01:41]}  Kd7 {[%clk 0:01:14]} 19. Nxf8+ {[%clk 0:01:05]}  Rxf8 {[%clk 0:01:15]} 20. Rhe1 {[%clk 0:01:05]}  Nf7 {[%clk 0:01:09]} 21. Qf6 {[%clk 0:00:35]}  Qf5 {[%clk 0:01:02]} 22. Qd4 {[%clk 0:00:33]}  Rc8 {[%clk 0:01:00]} 23. Rd2 {[%clk 0:00:32]}  Rc7 {[%clk 0:00:59]} 24. f3 {[%clk 0:00:31]}  Qg5 {[%clk 0:00:56]} 25. Kb1 {[%clk 0:00:28]}  Rc4 {[%clk 0:00:53]} 26. Qa7+ {[%clk 0:00:27]}  Rc7 {[%clk 0:00:53]} 27. Qe3 {[%clk 0:00:26]}  Qf6 {[%clk 0:00:49]} 28. b3 {[%clk 0:00:21]}  b4 {[%clk 0:00:47]} 29. Qd4 {[%clk 0:00:20]}  Qxd4 {[%clk 0:00:47]} 30. Rxd4 {[%clk 0:00:21]}  a5 {[%clk 0:00:47]} 31. h4 {[%clk 0:00:21]}  Rc5 {[%clk 0:00:46]} 32. g4 {[%clk 0:00:20]}  Ne5 {[%clk 0:00:46]} 33. Re3 {[%clk 0:00:14]}  Bd5 {[%clk 0:00:38]} 34. Rf4 {[%clk 0:00:14]}  Ng6 {[%clk 0:00:36]} 35. Rf6 {[%clk 0:00:09]}  Nxh4 {[%clk 0:00:36]} 36. g5 {[%clk 0:00:10]}  Nxf3 {[%clk 0:00:32]} 37. g6 {[%clk 0:00:06]}  Rc8 {[%clk 0:00:24]} 38. Rfxf3 {[%clk 0:00:05]}  Bxf3 {[%clk 0:00:22]} 39. Rxf3 {[%clk 0:00:06]}  Rg8 {[%clk 0:00:22]} 40. Rg3 {[%clk 0:00:06]}  d5 {[%clk 0:00:23]} 41. a3 {[%clk 0:00:06]}  Ke6 {[%clk 0:00:19]} 42. axb4 {[%clk 0:00:06]}  axb4 {[%clk 0:00:20]} 43. Kb2 {[%clk 0:00:05]}  d4 {[%clk 0:00:20]} 44. Rg4 {[%clk 0:00:04]}  Ke5 {[%clk 0:00:20]} 45. g7 {[%clk 0:00:05]}  Kd5 {[%clk 0:00:20]} 46. Kc1 {[%clk 0:00:05]}  Ke5 {[%clk 0:00:20]} 47. Kd2 {[%clk 0:00:05]}  Kd5 {[%clk 0:00:16]} 48. Kd3 {[%clk 0:00:05]}  Ke5 {[%clk 0:00:17]} 49. Re4+ {[%clk 0:00:05]}  Kf5 {[%clk 0:00:17]} 50. Rxd4 {[%clk 0:00:05]}  Rxg7 {[%clk 0:00:17]} 51. Rxb4 {[%clk 0:00:06]}  Rg3+ {[%clk 0:00:17]} 52. Kd2 {[%clk 0:00:06]}  Ke6 {[%clk 0:00:18]} 53. Rc4 {[%clk 0:00:07]}  Kd5 {[%clk 0:00:18]} 54. Kc1 {[%clk 0:00:07]}  Rg7 {[%clk 0:00:18]} 55. Kb2 {[%clk 0:00:08]}  Ra7 {[%clk 0:00:19]} 56. Rh4 {[%clk 0:00:08]}  Ra8 {[%clk 0:00:19]} 57. b4 {[%clk 0:00:06]}  Kc6 {[%clk 0:00:20]} 58. Kb3 {[%clk 0:00:07]}  Kb5 {[%clk 0:00:20]} 59. Rh5+ {[%clk 0:00:06]}  Kb6 {[%clk 0:00:21]} 60. Rh6+ {[%clk 0:00:07]}  Kb7 {[%clk 0:00:21]} 61. b5 {[%clk 0:00:07]}  Rf8 {[%clk 0:00:22]} 62. c4 {[%clk 0:00:07]}  Rf1 {[%clk 0:00:22]} 63. Kb4 {[%clk 0:00:07]}  Rf5 {[%clk 0:00:22]} 64. Rh7+ {[%clk 0:00:07]}  Kb6 {[%clk 0:00:23]} 65. c5+ {[%clk 0:00:07]}  Rxc5 {[%clk 0:00:22]} 66. Rh6+ {[%clk 0:00:08]} 1-0


[Site "https://www.chess.com"]